[Event "FIDE WSTC Open 65 2025"]
[Site "Prague"]
[Date "2025.02.18"]
[Round "2.16"]
[White "Westerinen, Heikki M.J."]
[Black "Brait, Wolfgang"]
[Result "1-0"]
[Annotator "ChessBase"]
[ECO "B08"]
[WhiteElo "2213"]
[BlackElo "1992"]
[PlyCount "111"]
[EventDate "2025.02.17"]
[EventType "team-tourn"]
[EventCountry "CZE"]
[SourceTitle "playchess.com"]
[Source "ChessBase"]
[SourceQuality "1"]
[TimeControl "40/5400+30:1800+30"]

1. e4 {[%emt 0:00:05]} d6 {[%emt 0:00:08]} 2. d4 {[%emt 0:00:16]} Nf6 {[%emt 0:00:12]} 3. Nc3 {[%emt 0:00:15]} g6 {[%emt 0:00:09]} 4. Nf3 {[%emt 0:04:35]} c6 {[%emt 0:01:31]} 5. a4 {[%emt 0:00:43]} Bg7 {[%emt 0:00:28]} 6. Be2 {[%emt 0:00:55]} Bg4 {[%emt 0:02:56]} 7. O-O {[%emt 0:00:54]} O-O {[%emt 0:03:52]} 8. h3 {[%emt 0:06:04]} Bxf3 {[%emt 0:01:59]} 9. Bxf3 {[%emt 0:00:04]} Qc7 {[%emt 0:01:34]} 10. Be3 {[%emt 0:04:13]} Nbd7 {[%emt 0:03:22]} 11. Qd2 {[%emt 0:03:15]} a6 {[%emt 0:03:09]} 12. a5 {[%emt 0:02:40]} e6 {[%emt 0:10:47]} 13. Rfd1 {[%emt 0:02:22]} Rfc8 {[%emt 0:03:57]} 14. Be2 {[%emt 0:07:32]} d5 {[%emt 0:05:13]} 15. e5 {[%emt 0:02:31]} Ne8 {[%emt 0:02:13]} 16. f4 {[%emt 0:05:49]} f5 {[%emt 0:01:37]} 17. Na4 {[%emt 0:01:14]} Bf8 {[%emt 0:00:56]} 18. Nc5 {[%emt 0:03:34]} Nxc5 {[%emt 0:02:56]} 19. dxc5 {[%emt 0:00:03]} Qe7 {[%emt 0:01:52]} 20. Qb4 {[%emt 0:06:29]} Rab8 {[%emt 0:03:18]} 21. Rd2 {[%emt 0:03:12]} Nc7 {[%emt 0:02:03]} 22. b3 {[%emt 0:01:45]} Kh8 {[%emt 0:00:42]} 23. Rad1 {[%emt 0:01:08]} Bh6 {[%emt 0:02:02]} 24. Rf1 {[%emt 0:04:55]} Qh4 {[%emt 0:04:21]} 25. Kh2 {[%emt 0:00:51]} Rg8 {[%emt 0:01:14]} 26. g3 {[%emt 0:01:26]} Qd8 {[%emt 0:01:04]} 27. h4 {[%emt 0:00:33]} Bf8 {[%emt 0:00:43]} 28. Kg2 {[%emt 0:02:02]} Be7 {[%emt 0:00:58]} 29. Rh1 {[%emt 0:00:44]} h5 {[%emt 0:01:56]} 30. c4 {[%emt 0:02:52]} Qf8 {[%emt 0:01:13]} 31. Rhd1 {[%emt 0:00:39]} Kh7 {[%emt 0:01:45]} 32. Qa3 {[%emt 0:01:58]} Qc8 {[%emt 0:05:19]} 33. Bf3 {[%emt 0:01:04]} Rd8 {[%emt 0:01:36]} 34. Rd3 {[%emt 0:01:07]} Ne8 {[%emt 0:00:46]} 35. Qa2 {[%emt 0:02:17]} Qc7 {[%emt 0:01:01]} 36. b4 {[%emt 0:01:07]} Ra8 {[%emt 0:00:18]} 37. cxd5 {[%emt 0:00:44]} exd5 {[%emt 0:00:31]} 38. Bd4 {[%emt 0:04:16]} Ng7 {[%emt 0:00:39]} 39. Qf2 {[%emt 0:00:54]} Ne6 {[%emt 0:00:29]} 40. Rh1 {[%emt 0:00:22]} Rg8 {[%emt 0:00:57]} 41. Kf1 {[%emt 0:30:43]} Raf8 {[%emt 0:31:00]} 42. Ke1 {[%emt 0:00:41]} Rf7 {[%emt 0:01:00]} 43. Qe2 {[%emt 0:00:36]} Kg7 {[%emt 0:03:19]} 44. Kd1 {[%emt 0:00:20]} Rh8 {[%emt 0:00:54]} 45. Kc1 {[%emt 0:00:47]} Bd8 {[%emt 0:01:29]} 46. Kb1 {[%emt 0:00:24]} Kf8 {[%emt 0:01:28]} 47. Qa2 {[%emt 0:00:33]} Rd7 {[%emt 0:03:29]} 48. Bf2 {[%emt 0:00:36]} Kf7 {[%emt 0:00:34]} 49. Rhd1 {[%emt 0:03:22]} Be7 {[%emt 0:00:40]} 50. Qd2 {[%emt 0:00:34]} Rhd8 {[%emt 0:01:31]} 51. Qe2 {[%emt 0:00:54]} Kg7 {[%emt 0:04:01]} 52. Qd2 {[%emt 0:04:11]} Kf7 {[%emt 0:01:36]} 53. Qc2 {[%emt 0:00:13]} Qc8 {[%emt 0:01:17]} 54. R3d2 {[%emt 0:00:26]} Qc7 {[%emt 0:01:10]} 55. Bxh5 {[%emt 0:00:45]} Rh8 {[%emt 0:06:48]} 56. Qxf5+ {[%emt 0:00:19]} 1-0

[Event "FIDE WSTC Open 65 2025"]
[Site "Prague"]
[Date "2025.02.18"]
[Round "2.17"]
[White "Boudre, Jean-Pierre"]
[Black "Stebbings, Anthony J"]
[Result "1/2-1/2"]
[Annotator "ChessBase"]
[ECO "B48"]
[WhiteElo "2206"]
[BlackElo "2239"]
[PlyCount "37"]
[EventDate "2025.02.17"]
[EventType "team-tourn"]
[EventCountry "CZE"]
[SourceTitle "playchess.com"]
[Source "ChessBase"]
[SourceQuality "1"]
[TimeControl "40/5400+30:1800+30"]

1. e4 {[%emt 0:00:11]} c5 {[%emt 0:00:03]} 2. Nf3 {[%emt 0:00:11]} e6 {[%emt 0:00:05]} 3. d4 {[%emt 0:00:08]} cxd4 {[%emt 0:00:04]} 4. Nxd4 {[%emt 0:00:07]} Nc6 {[%emt 0:00:04]} 5. Nc3 {[%emt 0:00:10]} Qc7 {[%emt 0:00:05]} 6. Be3 {[%emt 0:00:12]} a6 {[%emt 0:00:06]} 7. Qf3 {[%emt 0:00:16]} Ne5 {[%emt 0:00:07]} 8. Qg3 {[%emt 0:00:09]} h5 {[%emt 0:00:05]} 9. h4 {[%emt 0:00:37]} d6 {[%emt 0:00:58]} 10. O-O-O {[%emt 0:02:38]} Nf6 {[%emt 0:00:12]} 11. f3 {[%emt 0:01:14]} Bd7 {[%emt 0:05:59]} 12. Kb1 {[%emt 0:08:20]} b5 {[%emt 0:00:57]} 13. Bd3 {[%emt 0:21:45]} Rc8 {[%emt 0:06:35]} 14. Nce2 {[%emt 0:15:53]} Be7 {[%emt 0:06:20]} 15. Qxg7 {[%emt 0:15:27]} Rg8 {[%emt 0:00:29]} 16. Qh6 {[%emt 0:00:05]} Rg6 {[%emt 0:01:16]} 17. Qh8+ {[%emt 0:00:10]} Rg8 {[%emt 0:02:07]} 18. Qh6 {[%emt 0:00:09]} Rg6 {[%emt 0:00:42]} 19. Qh8+ {[%emt 0:00:10]} 1/2-1/2

[Event "FIDE WSTC Open 65 2025"]
[Site "Prague"]
[Date "2025.02.18"]
[Round "2.18"]
[White "Povah, Nigel E"]
[Black "Brongers, Henk"]
[Result "1-0"]
[Annotator "ChessBase"]
[ECO "D00"]
[WhiteElo "2206"]
[BlackElo "2022"]
[PlyCount "117"]
[EventDate "2025.02.17"]
[EventType "team-tourn"]
[EventCountry "CZE"]
[SourceTitle "playchess.com"]
[Source "ChessBase"]
[SourceQuality "1"]
[TimeControl "40/5400+30:1800+30"]

1. d4 {[%emt 0:00:06]} Nf6 {[%emt 0:00:12]} 2. Bf4 {[%emt 0:00:15]} d5 {[%emt 0:00:40]} 3. e3 {[%emt 0:00:14]} c5 {[%emt 0:00:08]} 4. Nd2 {[%emt 0:00:16]} Nc6 {[%emt 0:00:28]} 5. c3 {[%emt 0:00:06]} cxd4 {[%emt 0:00:29]} 6. exd4 {[%emt 0:00:10]} Bf5 {[%emt 0:00:50]} 7. Qb3 {[%emt 0:00:43]} Qc8 {[%emt 0:02:02]} 8. Ngf3 {[%emt 0:01:30]} e6 {[%emt 0:01:16]} 9. Nh4 {[%emt 0:02:58]} Be4 {[%emt 0:00:49]} 10. Nxe4 {[%emt 0:05:50]} Nxe4 {[%emt 0:00:12]} 11. Nf3 {[%emt 0:01:00]} Bd6 {[%emt 0:08:40]} 12. Bxd6 {[%emt 0:08:15]} Nxd6 {[%emt 0:00:20]} 13. Bd3 {[%emt 0:00:13]} O-O {[%emt 0:08:35]} 14. Qc2 {[%emt 0:05:43]} f5 {[%emt 0:01:36]} 15. O-O {[%emt 0:07:40]} Qd7 {[%emt 0:13:25]} 16. Rfe1 {[%emt 0:05:29]} Ne4 {[%emt 0:06:07]} 17. Bb5 {[%emt 0:10:49]} Qd6 {[%emt 0:05:45]} 18. Re2 {[%emt 0:05:02]} Rac8 {[%emt 0:09:20]} 19. Bxc6 {[%emt 0:08:11]} bxc6 {[%emt 0:07:38]} 20. b4 {[%emt 0:03:51]} a5 {[%emt 0:07:48]} 21. a3 {[%emt 0:00:09]} axb4 {[%emt 0:00:05]} 22. axb4 {[%emt 0:01:40]} Ra8 {[%emt 0:02:15]} 23. Qb2 {[%emt 0:06:20]} Qf4 {[%emt 0:05:58]} 24. Ne5 {[%emt 0:06:29]} Rac8 {[%emt 0:00:48]} 25. f3 {[%emt 0:03:09]} Nd6 {[%emt 0:01:35]} 26. Ra6 {[%emt 0:00:53]} Nc4 {[%emt 0:05:32]} 27. Nxc4 {[%emt 0:00:19]} dxc4 {[%emt 0:00:02]} 28. Rxe6 {[%emt 0:00:34]} Rf6 {[%emt 0:04:36]} 29. Rxf6 {[%emt 0:07:23]} Qe3+ {[%emt 0:00:10]} 30. Kf1 {[%emt 0:01:09]} Re8 {[%emt 0:02:04]} 31. Ra1 {[%emt 0:01:15]} gxf6 {[%emt 0:00:13]} 32. Rd1 {[%emt 0:03:42]} f4 {[%emt 0:00:46]} 33. Qd2 {[%emt 0:01:17]} Qxd2 {[%emt 0:04:15]} 34. Rxd2 {[%emt 0:00:04]} Re3 {[%emt 0:00:05]} 35. Rc2 {[%emt 0:00:08]} f5 {[%emt 0:00:47]} 36. Kf2 {[%emt 0:00:38]} Rd3 {[%emt 0:00:04]} 37. g3 {[%emt 0:00:22]} Kg7 {[%emt 0:00:53]} 38. gxf4 {[%emt 0:00:20]} Kg6 {[%emt 0:00:15]} 39. Kg3 {[%emt 0:00:23]} Kh5 {[%emt 0:00:07]} 40. b5 {[%emt 0:03:13]} cxb5 {[%emt 0:00:16]} 41. Rb2 {[%emt 0:30:11]} Rxc3 {[%emt 0:30:14]} 42. Rxb5 {[%emt 0:00:03]} Kg6 {[%emt 0:02:50]} 43. Rc5 {[%emt 0:00:00]} Rc2 {[%emt 0:00:00]} 44. h3 {[%emt 0:00:00]} c3 {[%emt 0:00:00]} 45. Kh4 {[%emt 0:00:00]} h6 {[%emt 0:00:00]} 46. Rc6+ {[%emt 0:00:00]} Kg7 {[%emt 0:00:00]} 47. Kh5 {[%emt 0:00:00]} Rh2 {[%emt 0:00:00]} 48. h4 {[%emt 0:00:00]} c2 {[%emt 0:00:00]} 49. d5 {[%emt 0:00:00]} Rd2 {[%emt 0:00:00]} 50. Rc7+ {[%emt 0:00:00]} Kf6 {[%emt 0:00:00]} 51. Kxh6 {[%emt 0:00:00]} Rxd5 {[%emt 0:00:00]} 52. Rc6+ {[%emt 0:00:00]} Kf7 {[%emt 0:00:00]} 53. Rxc2 {[%emt 0:00:00]} Rd3 {[%emt 0:00:00]} 54. Rc7+ {[%emt 0:00:02]} Kf6 {[%emt 0:00:36]} 55. Rc6+ {[%emt 0:00:24]} Kf7 {[%emt 0:00:08]} 56. Kg5 {[%emt 0:00:14]} Rxf3 {[%emt 0:00:17]} 57. h5 {[%emt 0:00:53]} Rg3+ {[%emt 0:02:18]} 58. Kxf5 {[%emt 0:00:54]} Kg7 {[%emt 0:00:08]} 59. Rg6+ {[%emt 0:00:24]} 1-0

[Event "FIDE WSTC Open 65 2025"]
[Site "Prague"]
[Date "2025.02.18"]
[Round "2.19"]
[White "Capron, Daniel"]
[Black "Baker, Chris W"]
[Result "1/2-1/2"]
[Annotator "ChessBase"]
[ECO "B50"]
[WhiteElo "2064"]
[BlackElo "2150"]
[PlyCount "168"]
[EventDate "2025.02.17"]
[EventType "team-tourn"]
[EventCountry "CZE"]
[SourceTitle "playchess.com"]
[Source "ChessBase"]
[SourceQuality "1"]
[TimeControl "40/5400+30:1800+30"]

1. e4 {[%emt 0:00:06]} e6 {[%emt 0:00:16]} 2. b3 {[%emt 0:02:39]} c5 {[%emt 0:03:32]} 3. Bb2 {[%emt 0:00:51]} Nc6 {[%emt 0:03:50]} 4. Nf3 {[%emt 0:08:09]} d6 {[%emt 0:07:49]} 5. Bb5 {[%emt 0:08:54]} Bd7 {[%emt 0:07:14]} 6. O-O {[%emt 0:00:46]} Nf6 {[%emt 0:04:58]} 7. Re1 {[%emt 0:01:04]} Be7 {[%emt 0:03:16]} 8. Bf1 {[%emt 0:10:03]} O-O {[%emt 0:01:26]} 9. d3 {[%emt 0:04:50]} Ng4 {[%emt 0:11:10]} 10. h3 {[%emt 0:13:39]} Bf6 {[%emt 0:02:07]} 11. d4 {[%emt 0:00:24]} Nxd4 {[%emt 0:04:56]} 12. Nxd4 {[%emt 0:14:22]} Nh6 {[%emt 0:03:02]} 13. c3 {[%emt 0:08:04]} cxd4 {[%emt 0:00:31]} 14. cxd4 {[%emt 0:00:02]} Bc6 {[%emt 0:04:37]} 15. Nd2 {[%emt 0:03:14]} d5 {[%emt 0:04:09]} 16. e5 {[%emt 0:02:20]} Be7 {[%emt 0:00:18]} 17. Nf3 {[%emt 0:05:42]} Qb6 {[%emt 0:03:49]} 18. Qc1 {[%emt 0:01:30]} Bb5 {[%emt 0:01:10]} 19. Ba3 {[%emt 0:00:26]} Bxa3 {[%emt 0:03:09]} 20. Qxa3 {[%emt 0:00:09]} Bxf1 {[%emt 0:00:25]} 21. Rxf1 {[%emt 0:00:14]} Rac8 {[%emt 0:01:45]} 22. Rac1 {[%emt 0:01:03]} Nf5 {[%emt 0:00:44]} 23. Rxc8 {[%emt 0:02:55]} Rxc8 {[%emt 0:00:09]} 24. Rd1 {[%emt 0:00:06]} h5 {[%emt 0:02:26]} 25. g3 {[%emt 0:01:04]} Rc3 {[%emt 0:01:54]} 26. Kg2 {[%emt 0:00:11]} Rc2 {[%emt 0:01:17]} 27. Rc1 {[%emt 0:03:13]} Ne3+ {[%emt 0:02:11]} 28. Kg1 {[%emt 0:00:32]} Qa6 {[%emt 0:00:20]} 29. fxe3 {[%emt 0:01:33]} Qxa3 {[%emt 0:00:29]} 30. Rxc2 {[%emt 0:00:06]} Kh7 {[%emt 0:01:28]} 31. Kf2 {[%emt 0:00:47]} Qa5 {[%emt 0:03:13]} 32. Re2 {[%emt 0:00:50]} Kh6 {[%emt 0:01:08]} 33. h4 {[%emt 0:02:34]} Kg6 {[%emt 0:01:50]} 34. Ng5 {[%emt 0:00:22]} Qa6 {[%emt 0:01:08]} 35. Rd2 {[%emt 0:00:09]} Qc6 {[%emt 0:01:44]} 36. Re2 {[%emt 0:00:14]} Qc1 {[%emt 0:01:30]} 37. Kg2 {[%emt 0:02:24]} a5 {[%emt 0:02:27]} 38. Kf2 {[%emt 0:00:11]} Qh1 {[%emt 0:01:02]} 39. Nf3 {[%emt 0:00:04]} Qb1 {[%emt 0:01:22]} 40. Kg2 {[%emt 0:00:29]} f6 {[%emt 0:00:36]} 41. Rf2 {[%emt 0:31:51]} Qe4 {[%emt 0:35:02]} 42. exf6 {[%emt 0:02:09]} gxf6 {[%emt 0:00:27]} 43. Re2 {[%emt 0:00:19]} Kf5 {[%emt 0:02:44]} 44. Kf2 {[%emt 0:00:50]} Kg4 {[%emt 0:01:06]} 45. Nh2+ {[%emt 0:00:32]} Kh3 {[%emt 0:02:10]} 46. Nf1 {[%emt 0:00:22]} e5 {[%emt 0:00:00]} 47. dxe5 {[%emt 0:00:00]} fxe5 {[%emt 0:00:00]} 48. Kg1 {[%emt 0:00:00]} d4 {[%emt 0:00:00]} 49. Rh2+ {[%emt 0:00:00]} Kg4 {[%emt 0:00:00]} 50. exd4 {[%emt 0:00:00]} Qxd4+ {[%emt 0:00:00]} 51. Kh1 {[%emt 0:00:00]} e4 {[%emt 0:00:00]} 52. Rd2 {[%emt 0:00:00]} Qc3 {[%emt 0:00:00]} 53. Kg2 {[%emt 0:00:00]} Kf5 {[%emt 0:00:00]} 54. Kf2 {[%emt 0:00:00]} Ke5 {[%emt 0:00:00]} 55. Ke2 {[%emt 0:00:00]} Qf3+ {[%emt 0:00:00]} 56. Ke1 {[%emt 0:00:00]} b5 {[%emt 0:00:00]} 57. Rf2 {[%emt 0:00:28]} Qc3+ {[%emt 0:00:00]} 58. Rd2 {[%emt 0:00:23]} Kf5 {[%emt 0:00:00]} 59. Kf2 {[%emt 0:02:21]} Kg4 {[%emt 0:00:00]} 60. Kg2 {[%emt 0:01:14]} Kf5 {[%emt 0:00:00]} 61. Kf2 {[%emt 0:00:48]} Ke5 {[%emt 0:00:00]} 62. Ke2 {[%emt 0:01:15]} Qf3+ {[%emt 0:00:00]} 63. Ke1 {[%emt 0:00:02]} a4 {[%emt 0:00:06]} 64. bxa4 {[%emt 0:00:05]} bxa4 {[%emt 0:00:06]} 65. Rf2 {[%emt 0:00:55]} Qa3 {[%emt 0:00:34]} 66. Rd2 {[%emt 0:00:17]} Qc3 {[%emt 0:03:34]} 67. Ke2 {[%emt 0:00:20]} Qf3+ {[%emt 0:00:37]} 68. Ke1 {[%emt 0:00:01]} a3 {[%emt 0:00:12]} 69. Rf2 {[%emt 0:00:20]} Qc3+ {[%emt 0:00:27]} 70. Rd2 {[%emt 0:00:04]} e3 {[%emt 0:01:59]} 71. Nxe3 {[%emt 0:00:17]} Ke4 {[%emt 0:00:18]} 72. Nf1 {[%emt 0:00:40]} Kf3 {[%emt 0:00:19]} 73. Nh2+ {[%emt 0:02:18]} Kxg3 {[%emt 0:00:16]} 74. Nf1+ {[%emt 0:00:02]} Kxh4 {[%emt 0:00:50]} 75. Kf2 {[%emt 0:00:26]} Kg5 {[%emt 0:00:28]} 76. Re2 {[%emt 0:01:15]} h4 {[%emt 0:00:35]} 77. Kg1 {[%emt 0:01:37]} h3 {[%emt 0:00:49]} 78. Rd2 {[%emt 0:01:25]} Qe5 {[%emt 0:00:57]} 79. Kh1 {[%emt 0:00:12]} Qe1 {[%emt 0:00:44]} 80. Kg1 {[%emt 0:00:04]} Kg4 {[%emt 0:00:29]} 81. Rf2 {[%emt 0:00:27]} h2+ {[%emt 0:00:18]} 82. Rxh2 {[%emt 0:00:06]} Qd1 {[%emt 0:00:55]} 83. Rd2 {[%emt 0:00:17]} Qe1 {[%emt 0:00:25]} 84. Rf2 {[%emt 0:00:47]} Qd1 {[%emt 0:00:36]} 1/2-1/2

[Event "FIDE WSTC Open 65 2025"]
[Site "Prague"]
[Date "2025.02.18"]
[Round "2.20"]
[White "Snape, Ian L"]
[Black "Donnenfeld, Patrice"]
[Result "1/2-1/2"]
[Annotator "NA"]
[ECO "A42"]
[WhiteElo "2062"]
[BlackElo "2052"]
[PlyCount "45"]
[EventDate "2025.02.17"]
[EventType "team-tourn"]
[EventCountry "CZE"]
[SourceTitle "playchess.com"]
[Source "ChessBase"]
[SourceQuality "1"]
[TimeControl "40/5400+30:1800+30"]

1. c4 {[%emt 0:00:04]} g6 {[%emt 0:00:05]} 2. Nc3 {[%emt 0:00:06]} Bg7 {[%emt 0:00:06]} 3. d4 {[%emt 0:00:06]} d6 {[%emt 0:00:06]} 4. e4 {[%emt 0:00:36]} e5 {[%emt 0:00:07]} 5. Nge2 {[%emt 0:01:19]} Nc6 {[%emt 0:01:24]} 6. d5 {[%emt 0:00:07]} Nce7 {[%emt 0:00:56]} 7. Ng3 {[%emt 0:00:11]} Nf6 {[%emt 0:03:58]} 8. Be2 {[%emt 0:01:51]} c5 {[%emt 0:07:10]} 9. Be3 {[%emt 0:05:23]} h5 {[%emt 0:05:37]} 10. Qd2 {[%emt 0:10:13]} Ng4 {[%emt 0:02:42]} 11. Bxg4 {[%emt 0:00:14]} hxg4 {[%emt 0:01:04]} 12. f4 {[%emt 0:04:22]} gxf3 {[%emt 0:06:13]} 13. gxf3 {[%emt 0:00:27]} Bh3 {[%emt 0:03:21]} 14. f4 {[%emt 0:13:14]} Qd7 {[%emt 0:03:35]} 15. O-O-O {[%emt 0:03:35]} O-O-O {[%emt 0:05:24]} 16. Kb1 {[%emt 0:01:22]} Kb8 {[%emt 0:00:09]} 17. fxe5 {[%emt 0:07:06]} Bxe5 {[%emt 0:00:06]} 18. Bf4 {[%emt 0:00:34]} f6 {[%emt 0:04:46]} 19. Rhg1 {[%emt 0:04:01]} Bd4 {[%emt 0:06:38]} 20. Nb5 {[%emt 0:07:55]} Be5 {[%emt 0:04:08]} 21. Bxe5 {[%emt 0:00:29]} fxe5 {[%emt 0:00:05]} 22. Qg5 {[%emt 0:01:45]} Rdf8 {[%emt 0:03:02]} 23. Qe3 {[%emt 0:03:26]} 1/2-1/2

[Event "FIDE WSTC Open 65 2025"]
[Site "Prague"]
[Date "2025.02.18"]
[Round "2.21"]
[White "Andreasen, Per Naesby"]
[Black "Uddenfeldt, Dan"]
[Result "1/2-1/2"]
[Annotator "ChessBase"]
[ECO "E09"]
[WhiteElo "2233"]
[BlackElo "2311"]
[PlyCount "25"]
[EventDate "2025.02.17"]
[EventType "team-tourn"]
[EventCountry "CZE"]
[SourceTitle "playchess.com"]
[Source "ChessBase"]
[SourceQuality "1"]
[TimeControl "40/5400+30:1800+30"]

1. g3 {[%emt 0:00:02]} Nf6 {[%emt 0:00:41]} 2. Bg2 {[%emt 0:00:07]} d5 {[%emt 0:00:36]} 3. Nf3 {[%emt 0:00:44]} e6 {[%emt 0:00:39]} 4. O-O {[%emt 0:00:53]} Be7 {[%emt 0:01:34]} 5. d4 {[%emt 0:00:38]} Nbd7 {[%emt 0:01:54]} 6. c4 {[%emt 0:05:05]} O-O {[%emt 0:01:32]} 7. Qc2 {[%emt 0:03:36]} c6 {[%emt 0:05:05]} 8. Nbd2 {[%emt 0:00:21]} b5 {[%emt 0:11:05]} 9. cxb5 {[%emt 0:13:41]} cxb5 {[%emt 0:00:18]} 10. Qc6 {[%emt 0:00:41]} Rb8 {[%emt 0:02:12]} 11. Nb3 {[%emt 0:00:49]} Qb6 {[%emt 0:03:55]} 12. Qxb6 {[%emt 0:00:54]} Rxb6 {[%emt 0:00:58]} 13. Bf4 {[%emt 0:04:39]} 1/2-1/2

[Event "FIDE WSTC Open 65 2025"]
[Site "Prague"]
[Date "2025.02.18"]
[Round "2.22"]
[White "Renman, Nils-Gustaf"]
[Black "Mikkelsen, Peter Jorgen Dam"]
[Result "1-0"]
[Annotator "ChessBase"]
[ECO "A52"]
[WhiteElo "2306"]
[BlackElo "2112"]
[PlyCount "71"]
[EventDate "2025.02.17"]
[EventType "team-tourn"]
[EventCountry "CZE"]
[SourceTitle "playchess.com"]
[Source "ChessBase"]
[SourceQuality "1"]
[TimeControl "40/5400+30:1800+30"]

1. d4 {[%emt 0:00:02]} Nf6 {[%emt 0:00:11]} 2. c4 {[%emt 0:00:08]} e5 {[%emt 0:00:37]} 3. dxe5 {[%emt 0:00:20]} Ng4 {[%emt 0:00:07]} 4. Nf3 {[%emt 0:00:43]} Bc5 {[%emt 0:00:26]} 5. e3 {[%emt 0:00:10]} Nc6 {[%emt 0:00:09]} 6. a3 {[%emt 0:04:59]} a5 {[%emt 0:01:19]} 7. Nc3 {[%emt 0:01:42]} Ngxe5 {[%emt 0:00:44]} 8. Nxe5 {[%emt 0:01:16]} Nxe5 {[%emt 0:00:09]} 9. Be2 {[%emt 0:07:00]} O-O {[%emt 0:02:37]} 10. O-O {[%emt 0:01:11]} d6 {[%emt 0:02:52]} 11. f4 {[%emt 0:22:13]} Nc6 {[%emt 0:13:09]} 12. Bd3 {[%emt 0:07:05]} f5 {[%emt 0:09:51]} 13. Qc2 {[%emt 0:05:33]} Qe7 {[%emt 0:07:36]} 14. Nd5 {[%emt 0:02:47]} Qf7 {[%emt 0:00:36]} 15. Kh1 {[%emt 0:01:42]} Be6 {[%emt 0:00:32]} 16. Bd2 {[%emt 0:04:49]} Bxd5 {[%emt 0:04:17]} 17. cxd5 {[%emt 0:00:08]} Ne7 {[%emt 0:00:14]} 18. e4 {[%emt 0:02:00]} fxe4 {[%emt 0:04:21]} 19. Bxe4 {[%emt 0:00:09]} h6 {[%emt 0:06:05]} 20. Qd3 {[%emt 0:00:55]} Nf5 {[%emt 0:02:42]} 21. b4 {[%emt 0:06:35]} axb4 {[%emt 0:00:44]} 22. axb4 {[%emt 0:00:02]} Rxa1 {[%emt 0:00:17]} 23. Rxa1 {[%emt 0:00:02]} Bb6 {[%emt 0:00:14]} 24. g4 {[%emt 0:07:21]} Ne7 {[%emt 0:07:32]} 25. Rf1 {[%emt 0:02:04]} Qf6 {[%emt 0:00:41]} 26. Bc3 {[%emt 0:02:34]} Qh4 {[%emt 0:00:33]} 27. Qf3 {[%emt 0:03:28]} h5 {[%emt 0:09:59]} 28. gxh5 {[%emt 0:04:19]} Nf5 {[%emt 0:01:01]} 29. Qg2 {[%emt 0:02:04]} Bd4 {[%emt 0:06:11]} 30. Bxd4 {[%emt 0:01:27]} Nxd4 {[%emt 0:00:08]} 31. Qg6 {[%emt 0:02:04]} Rf7 {[%emt 0:03:40]} 32. Qh7+ {[%emt 0:01:25]} Kf8 {[%emt 0:00:03]} 33. Bg6 {[%emt 0:00:15]} Ne2 {[%emt 0:14:31]} 34. Bxf7 {[%emt 0:02:41]} Kxf7 {[%emt 0:00:05]} 35. Qf5+ {[%emt 0:02:10]} Kg8 {[%emt 0:00:18]} 36. Qe6+ {[%emt 0:00:10]} 1-0

[Event "FIDE WSTC Open 65 2025"]
[Site "Prague"]
[Date "2025.02.18"]
[Round "2.23"]
[White "Mortensen, John"]
[Black "Wahlbom, Magnus"]
[Result "0-1"]
[Annotator "NA"]
[ECO "B51"]
[WhiteElo "1983"]
[BlackElo "2109"]
[PlyCount "94"]
[EventDate "2025.02.17"]
[EventType "team-tourn"]
[EventCountry "CZE"]
[SourceTitle "playchess.com"]
[Source "ChessBase"]
[SourceQuality "1"]
[TimeControl "40/5400+30:1800+30"]

1. e4 {[%emt 0:00:12]} c5 {[%emt 0:00:17]} 2. Nf3 {[%emt 0:00:18]} d6 {[%emt 0:00:09]} 3. Bb5+ {[%emt 0:01:21]} Nd7 {[%emt 0:02:10]} 4. c3 {[%emt 0:01:07]} Ngf6 {[%emt 0:00:56]} 5. Qe2 {[%emt 0:01:32]} a6 {[%emt 0:02:27]} 6. Ba4 {[%emt 0:00:38]} b5 {[%emt 0:02:41]} 7. Bc2 {[%emt 0:02:11]} e5 {[%emt 0:02:03]} 8. O-O {[%emt 0:01:46]} Be7 {[%emt 0:00:24]} 9. Rd1 {[%emt 0:06:25]} O-O {[%emt 0:02:08]} 10. d4 {[%emt 0:05:02]} Qc7 {[%emt 0:00:46]} 11. dxe5 {[%emt 0:01:38]} dxe5 {[%emt 0:00:24]} 12. Bg5 {[%emt 0:01:23]} Nb6 {[%emt 0:01:11]} 13. Nbd2 {[%emt 0:05:20]} Be6 {[%emt 0:09:30]} 14. Bb3 {[%emt 0:05:58]} c4 {[%emt 0:11:02]} 15. Bc2 {[%emt 0:02:18]} Nbd7 {[%emt 0:03:23]} 16. Nf1 {[%emt 0:06:31]} h6 {[%emt 0:04:52]} 17. Bxf6 {[%emt 0:03:01]} Nxf6 {[%emt 0:00:15]} 18. Ng3 {[%emt 0:00:54]} Rfe8 {[%emt 0:01:03]} 19. h3 {[%emt 0:03:34]} g6 {[%emt 0:05:13]} 20. a4 {[%emt 0:03:11]} Kg7 {[%emt 0:05:15]} 21. Nh2 {[%emt 0:02:48]} b4 {[%emt 0:03:45]} 22. cxb4 {[%emt 0:00:42]} Bxb4 {[%emt 0:00:08]} 23. Rac1 {[%emt 0:01:09]} Qa5 {[%emt 0:01:33]} 24. Ng4 {[%emt 0:02:49]} Nxg4 {[%emt 0:00:37]} 25. hxg4 {[%emt 0:00:09]} Rab8 {[%emt 0:00:17]} 26. Nf1 {[%emt 0:01:43]} Bc5 {[%emt 0:00:32]} 27. Nd2 {[%emt 0:01:39]} Rec8 {[%emt 0:00:59]} 28. b4 {[%emt 0:01:39]} Rxb4 {[%emt 0:02:44]} 29. Nf1 {[%emt 0:03:40]} Rd8 {[%emt 0:02:56]} 30. Rxd8 {[%emt 0:03:28]} Qxd8 {[%emt 0:00:08]} 31. Ne3 {[%emt 0:00:12]} Bd4 {[%emt 0:04:27]} 32. Rb1 {[%emt 0:03:27]} Qb6 {[%emt 0:01:44]} 33. Rxb4 {[%emt 0:01:50]} Qxb4 {[%emt 0:00:08]} 34. Nd5 {[%emt 0:02:40]} Qb2 {[%emt 0:04:02]} 35. g3 {[%emt 0:09:26]} c3 {[%emt 0:01:09]} 36. Kg2 {[%emt 0:00:37]} Bxg4 {[%emt 0:00:16]} 37. Qxg4 {[%emt 0:00:20]} Qxc2 {[%emt 0:00:09]} 38. Qf3 {[%emt 0:00:35]} f5 {[%emt 0:05:29]} 39. exf5 {[%emt 0:00:34]} Qxf5 {[%emt 0:00:11]} 40. Nb4 {[%emt 0:02:08]} a5 {[%emt 0:01:25]} 41. Qb7+ {[%emt 0:35:38]} Qf7 {[%emt 0:30:17]} 42. Qxf7+ {[%emt 0:08:01]} Kxf7 {[%emt 0:01:27]} 43. Nc2 {[%emt 0:00:04]} Ke6 {[%emt 0:00:18]} 44. f4 {[%emt 0:00:06]} Kd5 {[%emt 0:00:16]} 45. Kf3 {[%emt 0:00:04]} exf4 {[%emt 0:01:06]} 46. gxf4 {[%emt 0:00:19]} Bc5 {[%emt 0:00:28]} 47. Na1 {[%emt 0:01:21]} h5 {[%emt 0:01:03]} 0-1

[Event "FIDE WSTC Open 65 2025"]
[Site "Prague"]
[Date "2025.02.18"]
[Round "2.24"]
[White "Hammar, Bengt"]
[Black "Cordes, Steffen"]
[Result "1/2-1/2"]
[Annotator "NA"]
[ECO "B37"]
[WhiteElo "2100"]
[BlackElo "1943"]
[PlyCount "28"]
[EventDate "2025.02.17"]
[EventType "team-tourn"]
[EventCountry "CZE"]
[SourceTitle "playchess.com"]
[Source "ChessBase"]
[SourceQuality "1"]
[TimeControl "40/5400+30:1800+30"]

1. e4 {[%emt 0:00:33]} c5 {[%emt 0:00:07]} 2. Nf3 {[%emt 0:00:31]} g6 {[%emt 0:00:09]} 3. c4 {[%emt 0:01:45]} Bg7 {[%emt 0:00:21]} 4. d4 {[%emt 0:00:17]} cxd4 {[%emt 0:00:07]} 5. Nxd4 {[%emt 0:00:09]} Nc6 {[%emt 0:00:03]} 6. Nc2 {[%emt 0:00:28]} d6 {[%emt 0:00:30]} 7. Be2 {[%emt 0:03:08]} Be6 {[%emt 0:00:28]} 8. O-O {[%emt 0:02:18]} Rc8 {[%emt 0:01:42]} 9. Ne3 {[%emt 0:28:00]} Nf6 {[%emt 0:01:47]} 10. Nc3 {[%emt 0:06:57]} Na5 {[%emt 0:10:59]} 11. Qa4+ {[%emt 0:15:13]} Nd7 {[%emt 0:00:52]} 12. Ncd5 {[%emt 0:02:02]} Nc6 {[%emt 0:08:36]} 13. Qd1 {[%emt 0:01:52]} Nc5 {[%emt 0:03:59]} 14. f3 {[%emt 0:04:26]} Nd4 {[%emt 0:09:28]} 1/2-1/2